Workbook

Sheet INFO
K1: Q199-01
K2: Verze: 4.0
K3: 19.01.204
A5: Návrh buňkových tlumičů G / GE / GH
A8: Popis výpočtu:
A9: Výpočtový program je určen pro návrh buňkových tlumičů hluku GREIF instalovaných ve vzduchotechnickém potrubí, nebo stavebně připravených kanálech. Návrh je možné provádět pro všechny standardně vyráběné typy buňkových tlumičů GE / G / GH uspořádané do sestav podle směrnice ITS102-01, kapitoly 5, obrázků a) a b). Výpočet je omezen na běžné konstrukční podmínky. V případě složitějších návrhů je nutné tlumič poptat. Uvedené ceny jsou orientační. Skutečná cena včetně obchodních podmínek bude stanovena na základě nabídky.
A15: Nejistota výpočtu:
A16: V září 2018 skončilo přechodné období a vešla v platnost nová, výrazně aktualizovaná norma ČSN EN ISO 9001:2016, která je základním kamenem kvality pro všechny seriózní výrobce. Hlavní změnou je mj. řízení rizik. Z těchto důvodů uvádíme s útlumem hluku skutečnou odchylku. V oblasti metrologie se nejedná o nic nového, ale u prezentování katalogových hodnot útlumů je to novinka, která od projektanta vyžaduje posouzení instalace v širších souvislostech. Důvodem je neznalost podmínek, za jakých bude tlumič pracovat. Proto je nutné, aby míru nejistoty posoudil projektant a zohlednil všechny faktory, které mají na útlum hluku vliv. Jsou to zejména neprůzvučnost a tuhost potrubí, ve kterém bude tlumič instalován, provozní podmínky, způsob měření výsledků atd. Je tedy na projektantovi, jakou míru rizika zvolí a odchylku přičte nebo odečte a v jaké velikosti. Námi prezentovaná rozšířená nejistota představuje interval, ve kterém s 95 % pravděpodobností bude ležet měřená hodnota při kombinaci zmíněných místních podmínek. Je tedy zřejmé, že kvalitní návrh tlumení vyžaduje podrobnou znalost místních podmínek a řízení rizika. Vzhledem k tomu, že jsme již na novou normu recertifikovaní, jsme samozřejmě připraveni tyto rizika minimalizovat a projektantům nabídnout pomocnou ruku při řešení a aplikaci. V podstatě se nejedná o nic nového, neboť po fyzikální stránce se takto chová každý soubor měření a nezáleží na výrobci nebo způsobu uvádění výsledků. My jako první toto aplikujeme a otevřeně nabízíme pomoc při řešení. Oporou nám jsou interní databáze měřených instalací, při kterých validujeme jednotlivé výsledky a porovnáváme účinnosti jednotlivých řešení.
A38: Odkaz na projekční katalogy (www.greif.cz):
A39: ITS101-01 - Buňkové tlumiče hluku GE (kašírované provedení) ITS102-01 - Buňkové tlumiče hluku G (provedení s děrovaným plechem) ITS103-01 - Buňkové tlumiče hluku GH (hygienické provedení)
A43: Kontakt:
A44: Vaše připomínky na zlepšení, případně objevené chyby můžete posílat na micka@greif.cz. V případě, že budete potřebovat pomoc s návrhem tlumičů, kontaktujte naší technickou podporu.

Sheet TLU-01
N1: Zatlumení zdroje - koncepce výpočtu: | AA1: Data pro návrh buňkových tlumičů
I2: Zadejte označení výpočtu
N3: ZDROJ HLUKU LWZ | Q3: ÚTLUM HLUKU TLUMIČEM DT, LWT | U3: ÚTLUM HLUKU POTRUBÍM DP | X3: VÝSLEDNÝ ÚTLUM HLUKU DC, LWC
P4: → | S4: → | W4: → | AA4: Geometrie tlumičů | AE4: Podmínky výběru
A5: Návrh buňkových tlumičů G / GE / GH | AA5: Typ | AB5: Šířka | AC5: Stěna | AE5: Typ | AF5: Šířka | AG5: Stěna
AA6: G | AB6: 200 | AC6: 60 | AE6: =CONCATENATE("=",B16) -> =G | AF6: =B17 -> 200 | AG6: =IF(ISERR(DGET(AA5:AC18,"Stěna",AE5:AF6)),"",DGET(AA5:AC18,"Stěna",AE5:AF6)) -> 60
A7: Zadejte název projektu | N7: | ← | P7: CELKOVÝ ÚTLUM HLUKU DC = LWZ - LWC | X7: → | | AA7: G | AB7: 250 | AC7: 80 | AF7: Check: | AG7: =IF(AG6="",0,1) -> 1
A8: Zadejte název tlumiče | AA8: G | AB8: 300 | AC8: 100
AA9: G | AB9: 400 | AC9: 100
A10: Tlaková ztráta: | D10: =IF(L37=1,"Zadejte žlutá pole, nebo vepište poznámky…","Zadejte správné hodnoty, nebo vyberte sériově vyráběný element...") -> Zadejte žlutá pole, nebo vepište poznámky… | N10: Zatlumení zdroje - výpočet: | R10: Zadejte tvar hlukového spektra (L = lineární, A = korigované) | Y10: L | AA10: G | AB10: 500 | AC10: 120
A11: dpt | B11: = | K11: =IF(OR(B27>25,$L$37=0),"",(B30*B23/2*B24^2)*(1+B22)) -> 20.70599088 | N11: f | O11: Hz | P11: 31.5 | Q11: 63 | R11: 125 | S11: 250 | T11: 500 | U11: 1000 | V11: 2000 | W11: 4000 | X11: 8000 | Y11: A | AA11: GE | AB11: 200 | AC11: 50
A12: Q | B12: 10000 | D12: m3/h | E12: celkový průtok vzduchu tlumičem | L12: =IF(B12<=0,0,1) -> 1 | N12: =IF($Y$10="L","LWZ-Lin",IF($Y$10="A","LWZ-A","")) -> LWZ-Lin | O12: dB | P12: 75 | Q12: 90 | R12: 100 | S12: 103 | T12: 99 | U12: 94 | V12: 84 | W12: 78 | X12: 74 | Y12: =AL27 -> 99.88823949 | AA12: GE | AB12: 250 | AC12: 80
A13: a | B13: 1000 | D13: mm | E13: šířka potrubí (odpovídá násobkům šířky buňky) | K13: =IF($B$17=0,0,IF($B$13/$B$17<1,0,1)) -> 1 | L13: =IF($B$17=0,0,IF($B$13/$B$17=ROUND($B$13/$B$17,0),1,0)) -> 1 | N13: DT | O13: dB | P13: =C45 -> 6 | Q13: 6 | R13: 9 | S13: 15 | T13: 26 | U13: 40 | V13: 35 | W13: 30 | X13: 19 | Y13: - | AA13: GE | AB13: 300 | AC13: 100
A14: b | B14: 1000 | D14: mm | E14: výška potrubí (skladem v násobcích 500 mm) | L14: =IF(B14<=0,0,1) -> 1 | N14: =IF($Y$10="L","LWT-Lin",IF($Y$10="A","LWT-A","")) -> LWT-Lin | O14: dB | P14: =IF($L$37=0,"",IF($Y$10="L",AC29,IF($Y$10="A",AC30,""))) -> 47.62756289 | Q14: =IF($L$37=0,"",IF($Y$10="L",AD29,IF($Y$10="A",AD30,""))) -> 41.90690147 | R14: 36.86594359 | S14: 32.65628413 | T14: 28.40020649 | U14: 23.23673855 | V14: 17.48730308 | W14: 11.53918548 | X14: 5.537023407 | Y14: =IF($L$37=0,"",$AL$30) -> 30.22882613 | AA14: GH | AB14: 200 | AC14: 60
A15: L | B15: 1000 | D15: mm | E15: délka tlumiče (1000, 1500 nebo 2000), atypy na vyžádání | L15: =IF(OR(B15=1000,B15=1500,B15=2000),1,0) -> 1 | N15: DP | O15: dB | P15: 0 | Q15: 0 | R15: 0 | S15: 0 | T15: 0 | U15: 0 | V15: 0 | W15: 0 | X15: 0 | Y15: - | AA15: GH | AB15: 250 | AC15: 80
A16: typ | B16: G | D16: - | E16: zadejte typ tlumiče "G", "GE" nebo "GH" | L16: =IF(OR(B16="G",B16="GE",B16="GH"),1,0) -> 1 | N16: =IF($Y$10="L","LWC-Lin",IF($Y$10="A","LWC-A","")) -> LWC-Lin | O16: dB | P16: =IF($L$37=0,"",IF($Y$10="L",AC32,IF($Y$10="A",AC33,""))) -> 69.03154731 | Q16: =IF($L$37=0,"",IF($Y$10="L",AD32,IF($Y$10="A",AD33,""))) -> 84.0002682 | R16: 91.00001676 | S16: 88.00001269 | T16: 73.00015059 | U16: 54.00364146 | V16: 49.00306451 | W16: 48.00098097 | X16: 55.00004915 | Y16: =IF($L$37=0,"",$AL$33) -> 81.10032413 | AA16: GH | AB16: 300 | AC16: 100
A17: š | B17: 200 | D17: mm | E17: šířka buňky (200, 250, 300, 400, 500) - zpravidla kratší strana elementu | G17: (volte rozměry: 200, 250, 400 a 500) | L17: =IF(OR(B17=200,B17=250,B17=300,B17=400,B17=500),1,0) -> 1 | N17: DC | O17: dB | P17: =IF($L$37=0,"",AC34) -> 5.968452694 | Q17: =IF($L$37=0,"",AD34) -> 5.999731799 | R17: 8.999983236 | S17: 14.99998731 | T17: 25.99984941 | U17: 39.99635854 | V17: 34.99693549 | W17: 29.99901903 | X17: 18.99995085 | Y17: =IF(OR($L$37=0,$Y$16="<20",$Y$12="<20"),"",$Y$12-$Y$16) -> 18.78791537 | AA17: GH | AB17: 400 | AC17: 100
A18: dz1 | B18: 0.1 | D18: - | E18: bez náběhu dz1=1, s náběhem dz1=0,1 | L18: =IF(OR(B18=1,B18=0.1),1,0) -> 1 | N18: =IF(B17=B13,"Jeden element v potrubí nefunguje jako tlumič, ale jako obklad potrubí - snížený útlum na cca 50%","") ->  | AA18: GH | AB18: 500 | AC18: 120
A19: dz2 | B19: 0.7 | D19: - | E19: bez výběhu dz2=1, s výběhem dz2=0,7 | L19: =IF(OR(B19=1,B19=0.7),1,0) -> 1 | N19: Graf - [dB / Hz]:
A20: t | B20: 20 | D20: °C | E20: teplota vzduchu (-50 až 200°C) | L20: =IF(OR(B20<-50,B20>200),0,1) -> 1 | AA20: Korekční křivka
A21: p | B21: 101325 | D21: Pa | E21: statický tlak v potrubí (98000 až 110000 Pa) | L21: =IF(OR(B21<98000,B21>110000),0,1) -> 1 | AA21: f | AB21: Hz | AC21: 31.5 | AD21: 63 | AE21: 125 | AF21: 250 | AG21: 500 | AH21: 1000 | AI21: 2000 | AJ21: 4000 | AK21: 8000
A22: res | B22: 0.2 | D22: % | E22: rezerva na místní podmínky | L22: =IF(B22<0,0,1) -> 1 | AA22: A | AB22: dB | AC22: -39.4 | AD22: -26.2 | AE22: -16.1 | AF22: -8.6 | AG22: -3.2 | AH22: 0 | AI22: 1.2 | AJ22: 1 | AK22: -1.1
A23: ro | B23: =IF($L$37=0,"",$B$21/(287.15*(273.15+$B$20))) -> 1.203698982 | D23: kg/m3 | E23: hustota vzduchu
A24: w | B24: =IF($L$37=0,"",$B$12/3600/($B$13*$B$14/1000000)) -> 2.777777778 | D24: m/s | E24: rychlost proudění vzduchu v profilu a x b | AA24: Hladiny hluku
A25: n | B25: =IF(OR($L$37=0,$B$17=0),"",$B$13/$B$17) -> 5 | D25: ks | E25: počet buněk v řadě vedle sebe (= a/š) | AA25: f | AB25: Hz | AC25: 31.5 | AD25: 63 | AE25: 125 | AF25: 250 | AG25: 500 | AH25: 1000 | AI25: 2000 | AJ25: 4000 | AK25: 8000 | AL25: SUM
A26: s | B26: =IF($L$37=0,"",$B$17-2*$AG$6) -> 80 | D26: mm | E26: průtočná mezera v buňce | AA26: LWZ-Lin | AB26: dB | AC26: =IF($Y$10="L",P12,IF($Y$10="A",IF((P12-AC22)<0,0,P12-AC22))) -> 75 | AD26: =IF($Y$10="L",Q12,IF($Y$10="A",IF((Q12-AD22)<0,0,Q12-AD22))) -> 90 | AE26: 100 | AF26: 103 | AG26: 99 | AH26: 94 | AI26: 84 | AJ26: 78 | AK26: 74 | AL26: =IF(10*LOG10((10^(AC26/10))+(10^(AD26/10))+(10^(AE26/10))+(10^(AF26/10))+(10^(AG26/10))+(10^(AH26/10))+(10^(AI26/10))+(10^(AJ26/10))+(10^(AK26/10)))<20,"<20",10*LOG10((10^(AC26/10))+(10^(AD26/10))+(10^(AE26/10))+(10^(AF26/10))+(10^(AG26/10))+(10^(AH26/10))+(10^(AI26/10))+(10^(AJ26/10))+(10^(AK26/10)))) -> 106.2095615
A27: wi | B27: =IF($L$37=0,"",($B$12/3600)/($B$26/1000*$B$14/1000*$B$25)) -> 6.944444444 | D27: m/s | E27: =IF(AND(B27>25,L37<>0),"rychlost proudění překračuje 25 m/s","rychlost proudění uvnitř v tlumiči") -> rychlost proudění uvnitř v tlumiči | AA27: LWZ-A | AB27: dBA | AC27: =IF($Y$10="A",P12,IF($Y$10="L",IF((P12+AC22)<0,0,P12+AC22))) -> 35.6 | AD27: =IF($Y$10="A",Q12,IF($Y$10="L",IF((Q12+AD22)<0,0,Q12+AD22))) -> 63.8 | AE27: 83.9 | AF27: 94.4 | AG27: 95.8 | AH27: 94 | AI27: 85.2 | AJ27: 79 | AK27: 72.9 | AL27: =IF(10*LOG10((10^(AC27/10))+(10^(AD27/10))+(10^(AE27/10))+(10^(AF27/10))+(10^(AG27/10))+(10^(AH27/10))+(10^(AI27/10))+(10^(AJ27/10))+(10^(AK27/10)))<20,"<20",10*LOG10((10^(AC27/10))+(10^(AD27/10))+(10^(AE27/10))+(10^(AF27/10))+(10^(AG27/10))+(10^(AH27/10))+(10^(AI27/10))+(10^(AJ27/10))+(10^(AK27/10)))) -> 99.88823949
A28: dzs | B28: =IF($L$37=0,"",(($B$17-$B$26)/$B$26)^2*(0.5*$B$18*($B$26/($B$17-$B$26)+1)+$B$19)) -> 1.7625 | D28: - | E28: součinitel tlakové ztráty pro náběh a výběh | AA28: DT | AB28: dB | AC28: =IF(OR($L$37=0,ISERR(DGET(AA37:AQ61,"31,5",AS37:AU38))),0,IF(B17=B13,DGET(AA37:AQ61,"31,5",AS37:AU38)*0.5,DGET(AA37:AQ61,"31,5",AS37:AU38))) -> 6 | AD28: =IF(OR($L$37=0,ISERR(DGET(AA37:AQ61,"63",AS37:AU38))),0,IF(B17=B13,DGET(AA37:AQ61,"63",AS37:AU38)*0.5,DGET(AA37:AQ61,"63",AS37:AU38))) -> 6 | AE28: =IF(OR($L$37=0,ISERR(DGET(AA37:AQ61,"125",AS37:AU38))),0,IF(B17=B13,DGET(AA37:AQ61,"125",AS37:AU38)*0.5,DGET(AA37:AQ61,"125",AS37:AU38))) -> 9 | AF28: =IF(OR($L$37=0,ISERR(DGET(AA37:AQ61,"250",AS37:AU38))),0,IF(B17=B13,DGET(AA37:AQ61,"250",AS37:AU38)*0.5,DGET(AA37:AQ61,"250",AS37:AU38))) -> 15 | AG28: =IF(OR($L$37=0,ISERR(DGET(AA37:AQ61,"500",AS37:AU38))),0,IF(B17=B13,DGET(AA37:AQ61,"500",AS37:AU38)*0.5,DGET(AA37:AQ61,"500",AS37:AU38))) -> 26 | AH28: =IF(OR($L$37=0,ISERR(DGET(AA37:AQ61,"1000",AS37:AU38))),0,IF(B17=B13,DGET(AA37:AQ61,"1000",AS37:AU38)*0.5,DGET(AA37:AQ61,"1000",AS37:AU38))) -> 40 | AI28: =IF(OR($L$37=0,ISERR(DGET(AA37:AQ61,"2000",AS37:AU38))),0,IF(B17=B13,DGET(AA37:AQ61,"2000",AS37:AU38)*0.5,DGET(AA37:AQ61,"2000",AS37:AU38))) -> 35 | AJ28: =IF(OR($L$37=0,ISERR(DGET(AA37:AQ61,"4000",AS37:AU38))),0,IF(B17=B13,DGET(AA37:AQ61,"4000",AS37:AU38)*0.5,DGET(AA37:AQ61,"4000",AS37:AU38))) -> 30 | AK28: =IF(OR($L$37=0,ISERR(DGET(AA37:AQ61,"8000",AS37:AU38))),0,IF(B17=B13,DGET(AA37:AQ61,"8000",AS37:AU38)*0.5,DGET(AA37:AQ61,"8000",AS37:AU38))) -> 19 | AL28: -
A29: dzf | B29: =IF($L$37=0,"",0.025*$B$15/$B$26*(1+($B$17-$B$26)/$B$26)^2) -> 1.953125 | D29: - | E29: součinitel tlakové ztráty třením v tlumiči | AA29: LWT-Lin | AB29: dB | AC29: =IF($L$37=0,0,IF($B$37+(10*LOG10($B$21*$B$31*$B$33/$B$36)+60*LOG10($B$32)+10*LOG10(1+($B$31/(2*AC25*$B$34))^2)-10*LOG10(1+(AC25*$B$35/$B$27)^2))<0,0,$B$37+(10*LOG10($B$21*$B$31*$B$33/$B$36)+60*LOG10($B$32)+10*LOG10(1+($B$31/(2*AC25*$B$34))^2)-10*LOG10(1+(AC25*$B$35/$B$27)^2)))) -> 47.62756289 | AD29: =IF($L$37=0,0,IF($B$37+(10*LOG10($B$21*$B$31*$B$33/$B$36)+60*LOG10($B$32)+10*LOG10(1+($B$31/(2*AD25*$B$34))^2)-10*LOG10(1+(AD25*$B$35/$B$27)^2))<0,0,$B$37+(10*LOG10($B$21*$B$31*$B$33/$B$36)+60*LOG10($B$32)+10*LOG10(1+($B$31/(2*AD25*$B$34))^2)-10*LOG10(1+(AD25*$B$35/$B$27)^2)))) -> 41.90690147 | AE29: 36.86594359 | AF29: 32.65628413 | AG29: 28.40020649 | AH29: 23.23673855 | AI29: 17.48730308 | AJ29: 11.53918548 | AK29: 5.537023407 | AL29: =IF(10*LOG10((10^(AC29/10))+(10^(AD29/10))+(10^(AE29/10))+(10^(AF29/10))+(10^(AG29/10))+(10^(AH29/10))+(10^(AI29/10))+(10^(AJ29/10))+(10^(AK29/10)))<20,"<20",10*LOG10((10^(AC29/10))+(10^(AD29/10))+(10^(AE29/10))+(10^(AF29/10))+(10^(AG29/10))+(10^(AH29/10))+(10^(AI29/10))+(10^(AJ29/10))+(10^(AK29/10)))) -> 49.09034779
A30: dzc | B30: =IF($L$37=0,"",$B$28+$B$29) -> 3.715625 | D30: - | E30: celkový součinitel tlakové ztráty tlumiče (dzs+dzf) | AA30: LWT-A | AB30: dBA | AC30: =IF($L$37=0,0,IF((AC29+AC22)<0,0,AC29+AC22)) -> 8.227562888 | AD30: =IF($L$37=0,0,IF((AD29+AD22)<0,0,AD29+AD22)) -> 15.70690147 | AE30: 20.76594359 | AF30: 24.05628413 | AG30: 25.20020649 | AH30: 23.23673855 | AI30: 18.68730308 | AJ30: 12.53918548 | AK30: 4.437023407 | AL30: =IF(10*LOG10((10^(AC30/10))+(10^(AD30/10))+(10^(AE30/10))+(10^(AF30/10))+(10^(AG30/10))+(10^(AH30/10))+(10^(AI30/10))+(10^(AJ30/10))+(10^(AK30/10)))<20,"<20",10*LOG10((10^(AC30/10))+(10^(AD30/10))+(10^(AE30/10))+(10^(AF30/10))+(10^(AG30/10))+(10^(AH30/10))+(10^(AI30/10))+(10^(AJ30/10))+(10^(AK30/10)))) -> 30.22882613
A31: c | B31: =IF($L$37=0,"",(1.4*287.15*(273.15+$B$20))^0.5) -> 343.2917586 | D31: m/s | E31: rychlost zvuku ve vzduchu při teplotě t | AA31: DP | AB31: dB | AC31: =P15 -> 0 | AD31: =Q15 -> 0 | AE31: 0 | AF31: 0 | AG31: 0 | AH31: 0 | AI31: 0 | AJ31: 0 | AK31: 0 | AL31: -
A32: Ma | B32: =IF($L$37=0,"",$B$27/$B$31) -> 0.02022898678 | D32: - | E32: Machovo číslo | AA32: LWC-Lin | AB32: dB | AC32: =IF($L$37=0,0,IF(10*LOG10(10^((AC26-AC28-AC31)/10)+10^(AC29/10))<0,0,10*LOG10(10^((AC26-AC28-AC31)/10)+10^(AC29/10)))) -> 69.03154731 | AD32: =IF($L$37=0,0,IF(10*LOG10(10^((AD26-AD28-AD31)/10)+10^(AD29/10))<0,0,10*LOG10(10^((AD26-AD28-AD31)/10)+10^(AD29/10)))) -> 84.0002682 | AE32: 91.00001676 | AF32: 88.00001269 | AG32: 73.00015059 | AH32: 54.00364146 | AI32: 49.00306451 | AJ32: 48.00098097 | AK32: 55.00004915 | AL32: =IF(10*LOG10((10^(AC32/10))+(10^(AD32/10))+(10^(AE32/10))+(10^(AF32/10))+(10^(AG32/10))+(10^(AH32/10))+(10^(AI32/10))+(10^(AJ32/10))+(10^(AK32/10)))<20,"<20",10*LOG10((10^(AC32/10))+(10^(AD32/10))+(10^(AE32/10))+(10^(AF32/10))+(10^(AG32/10))+(10^(AH32/10))+(10^(AI32/10))+(10^(AJ32/10))+(10^(AK32/10)))) -> 93.36411369
A33: S | B33: =IF($L$37=0,"",$B$26*$B$14*$B$25/1000000) -> 0.4 | D33: m2 | E33: plocha nejmenšího průtočného průřezu buňkového tlumiče | AA33: LWC-A | AB33: dBA | AC33: =IF($L$37=0,0,IF((AC32+AC22)<0,0,AC32+AC22)) -> 29.63154731 | AD33: =IF($L$37=0,0,IF((AD32+AD22)<0,0,AD32+AD22)) -> 57.8002682 | AE33: 74.90001676 | AF33: 79.40001269 | AG33: 69.80015059 | AH33: 54.00364146 | AI33: 50.20306451 | AJ33: 49.00098097 | AK33: 53.90004915 | AL33: =IF(10*LOG10((10^(AC33/10))+(10^(AD33/10))+(10^(AE33/10))+(10^(AF33/10))+(10^(AG33/10))+(10^(AH33/10))+(10^(AI33/10))+(10^(AJ33/10))+(10^(AK33/10)))<20,"<20",10*LOG10((10^(AC33/10))+(10^(AD33/10))+(10^(AE33/10))+(10^(AF33/10))+(10^(AG33/10))+(10^(AH33/10))+(10^(AI33/10))+(10^(AJ33/10))+(10^(AK33/10)))) -> 81.10032413
A34: H | B34: =IF($L$37=0,"",IF($B$13>$B$14,$B$13/1000,$B$14/1000)) -> 1 | D34: m | E34: největší příčný rozměr potrubí | AA34: DC | AB34: dB | AC34: =IF($L$37=0,0,IF($Y$10="L",AC26-AC32,IF($Y$10="A",AC27-AC33,""))) -> 5.968452694 | AD34: =IF($L$37=0,0,IF($Y$10="L",AD26-AD32,IF($Y$10="A",AD27-AD33,""))) -> 5.999731799 | AE34: 8.999983236 | AF34: 14.99998731 | AG34: 25.99984941 | AH34: 39.99635854 | AI34: 34.99693549 | AJ34: 29.99901903 | AK34: 18.99995085 | AL34: -
A35: delta | B35: =IF($L$37=0,"",0.02) -> 0.02 | D35: - | E35: spektrální obsah vysokých kmitočtů
A36: W0 | B36: =IF($L$37=0,"",1) -> 1 | D36: W | E36: referenční výkon | AA36: Data katalog | AS36: Podmínky výběru DT
A37: B | B37: =IF($L$37=0,"",63) -> 63 | D37: dB | E37: konstanta tlumiče | L37: =L12*L13*L14*L15*L16*L17*L18*L19*L20*L21*L22*AG7*AV39 -> 1 | AA37: Označení tlumiče | AD37: Typ | AE37: Šířka | AF37: Délka | AG37: Váha | AH37: Cena | AI37: 31.5 | AJ37: 63 | AK37: 125 | AL37: 250 | AM37: 500 | AN37: 1000 | AO37: 2000 | AP37: 4000 | AQ37: 8000 | AS37: Typ | AT37: Šířka | AU37: Délka | AV37: Váha
L38: Výpočet je proveden dle ČSN EN ISO 14163, odhad nepřesnosti ± 10% | AA38: G200x500x1000 | AD38: G | AE38: 200 | AF38: 1000 | AG38: 10 | AH38: 1720 | AI38: 6 | AJ38: 6 | AK38: 9 | AL38: 15 | AM38: 26 | AN38: 40 | AO38: 35 | AP38: 30 | AQ38: 19 | AS38: =CONCATENATE("=",B16) -> =G | AT38: =B17 -> 200 | AU38: =IF($B$15=1000,1000,IF($B$15=1500,1500,IF($B$15=2000,2000,0))) -> 1000 | AV38: =IF(ISERR(DGET(AA37:AQ61,"Váha",AS37:AU38)),"",DGET(AA37:AQ61,"Váha",AS37:AU38)) -> 10
A39: Vlastní hluk: | AA39: G200x500x1500 | AD39: G | AE39: 200 | AF39: 1500 | AG39: 15 | AH39: 2685 | AI39: 7 | AJ39: 7 | AK39: 12 | AL39: 21 | AM39: 38 | AN39: 43 | AO39: 40 | AP39: 33 | AQ39: 26 | AU39: Check: | AV39: =IF(AV38="",0,1) -> 1
A40: f | B40: Hz | C40: 31.5 | D40: 63 | E40: 125 | F40: 250 | G40: 500 | H40: 1000 | I40: 2000 | J40: 4000 | K40: 8000 | L40: LWT-A | AA40: G200x500x2000 | AD40: G | AE40: 200 | AF40: 2000 | AG40: 24 | AH40: 3375 | AI40: 8 | AJ40: 9 | AK40: 15 | AL40: 28 | AM40: 43 | AN40: 48 | AO40: 46 | AP40: 40 | AQ40: 30
A41: LWT-Lin | B41: dB | C41: =IF($L$37=0,"",AC29) -> 47.62756289 | D41: =IF($L$37=0,"",AD29) -> 41.90690147 | E41: 36.86594359 | F41: 32.65628413 | G41: 28.40020649 | H41: 23.23673855 | I41: 17.48730308 | J41: 11.53918548 | K41: 5.537023407 | L41: =IF($L$37=0,"",$AL$30) -> 30.22882613 | AA41: G250x500x1000 | AD41: G | AE41: 250 | AF41: 1000 | AG41: 11 | AH41: 1830 | AI41: 6 | AJ41: 7 | AK41: 11 | AL41: 16 | AM41: 29 | AN41: 41 | AO41: 34 | AP41: 26 | AQ41: 17
L42: Výpočet je proveden dle ČSN EN ISO 14163, odhad nepřesnosti ± 3 dB | AA42: G250x500x1500 | AD42: G | AE42: 250 | AF42: 1500 | AG42: 17 | AH42: 2900 | AI42: 8 | AJ42: 8 | AK42: 15 | AL42: 23 | AM42: 41 | AN42: 43 | AO42: 37 | AP42: 31 | AQ42: 23 | AS42: Ozačení tlumiče
A43: Útlum a váha buňkového tlumiče: | N43: Závěrečné shrnutí výsledků: | AA43: G250x500x2000 | AD43: G | AE43: 250 | AF43: 2000 | AG43: 26 | AH43: 3620 | AI43: 9 | AJ43: 11 | AK43: 18 | AL43: 28 | AM43: 42 | AN43: 47 | AO43: 43 | AP43: 36 | AQ43: 27 | AS43: =IF(ISERR(DGET(AA37:AQ61,"Označení tlumiče",AS37:AU38)),"Atypický rozměr",IF(MOD(B14,500)>0,"Atypický rozměr",CONCATENATE(DGET(AA37:AQ61,"Označení tlumiče",AS37:AU38),AV43))) -> G200x500x1000.1 | AV43: =IF(AND(B18=0.1,B19=0.7),".1",IF(AND(B18=1,B19=1),".3",".2")) -> .1
A44: f | B44: Hz | C44: 31.5 | D44: 63 | E44: 125 | F44: 250 | G44: 500 | H44: 1000 | I44: 2000 | J44: 4000 | K44: 8000 | L44: M | N44: Instalační rozměr potrubí | Q44: =IF($L$37=0,"",CONCATENATE(B13," x ",B14," - ",B15)) -> 1000 x 1000 - 1000 | T44: Počet buňek v tlumiči | W44: =IF(OR($L$37=0,$Q$45="Atypický rozměr"),"Zašlete poptávku",($B$13*$B$14*$B$15)/($B$17*500*$B$15)) -> 10 | AA44: G300x500x2000 | AD44: G | AE44: 300 | AF44: 2000 | AG44: 31 | AH44: 3870 | AI44: 9 | AJ44: 10 | AK44: 18 | AL44: 34 | AM44: 44 | AN44: 50 | AO44: 47 | AP44: 42 | AQ44: 30
A45: DT | B45: dB | C45: =IF(OR($L$37=0,$K$13=0),"",AC28) -> 6 | D45: =IF(OR($L$37=0,$K$13=0),"",AD28) -> 6 | E45: 9 | F45: 15 | G45: 26 | H45: 40 | I45: 35 | J45: 30 | K45: 19 | L45: kg/ks | N45: Označení tlumiče | Q45: =IF($L$37=0,"",$AS$43) -> G200x500x1000.1 | T45: Hmotnost bez potrubí | W45: =IF(OR($L$37=0,$Q$45="Atypický rozměr"),"Zašlete poptávku",$W$44*$L$46) -> 100 | AA45: G400x500x2000 | AD45: G | AE45: 400 | AF45: 2000 | AG45: 34 | AH45: 4885 | AI45: 8 | AJ45: 9 | AK45: 19 | AL45: 28 | AM45: 36 | AN45: 43 | AO45: 35 | AP45: 25 | AQ45: 15 | AS45: Cena tlumiče
A46: 2sigR | B46: dB | C46: =IF(C45="","",7) -> 7 | D46: =IF(D45="","",6) -> 6 | E46: =IF(E45="","",4) -> 4 | F46: =IF(F45="","",4) -> 4 | G46: 4 | H46: 4 | I46: 4 | J46: 4 | K46: =IF(K45="","",7) -> 7 | L46: =IF($L$37=0,"",$AV$38) -> 10 | N46: Brutto cena buňkových tlumičů bez potrubí (bez DPH, EXW Uhlířské Janovice) | W46: =IF($W$44="Zašlete poptávku","Zašlete poptávku",$W$44*$AS$46) -> 17200 | AA46: G500x500x2000 | AD46: G | AE46: 500 | AF46: 2000 | AG46: 36 | AH46: 5505 | AI46: 9 | AJ46: 11 | AK46: 20 | AL46: 30 | AM46: 34 | AN46: 36 | AO46: 30 | AP46: 22 | AQ46: 13 | AS46: =IF(AS43="Atypický rozměr","",DGET(AA37:AQ61,"Cena",AS37:AU38)) -> 1720 | AT46: Kč/ks
AA47: GE200x500x1000 | AD47: GE | AE47: 200 | AF47: 1000 | AG47: 7.3 | AH47: 1265 | AI47: 5 | AJ47: 5 | AK47: 8 | AL47: 14 | AM47: 24 | AN47: 40 | AO47: 36 | AP47: 29 | AQ47: 20
AA48: GE200x500x1500 | AD48: GE | AE48: 200 | AF48: 1500 | AG48: 10.8 | AH48: 2095 | AI48: 6 | AJ48: 6 | AK48: 11 | AL48: 19 | AM48: 32 | AN48: 42 | AO48: 39 | AP48: 35 | AQ48: 24
AA49: GE250x500x1000 | AD49: GE | AE49: 250 | AF49: 1000 | AG49: 8.6 | AH49: 1360 | AI49: 6 | AJ49: 7 | AK49: 11 | AL49: 16 | AM49: 29 | AN49: 45 | AO49: 40 | AP49: 32 | AQ49: 23
AA50: GE250x500x1500 | AD50: GE | AE50: 250 | AF50: 1500 | AG50: 12.8 | AH50: 2340 | AI50: 8 | AJ50: 8 | AK50: 15 | AL50: 23 | AM50: 41 | AN50: 46 | AO50: 43 | AP50: 38 | AQ50: 28
AA51: GE300x500x1000 | AD51: GE | AE51: 300 | AF51: 1000 | AG51: 11.8 | AH51: 1440 | AI51: 7 | AJ51: 8 | AK51: 12 | AL51: 19 | AM51: 34 | AN51: 46 | AO51: 41 | AP51: 31 | AQ51: 20
AA52: GE300x500x1500 | AD52: GE | AE52: 300 | AF52: 1500 | AG52: 16.5 | AH52: 2580 | AI52: 8 | AJ52: 9 | AK52: 17 | AL52: 27 | AM52: 40 | AN52: 49 | AO52: 47 | AP52: 39 | AQ52: 22
AA53: GH200x500x1000 | AD53: GH | AE53: 200 | AF53: 1000 | AG53: 10 | AH53: 1935 | AI53: 6 | AJ53: 6 | AK53: 9 | AL53: 15 | AM53: 26 | AN53: 28 | AO53: 24 | AP53: 18 | AQ53: 10
AA54: GH200x500x1500 | AD54: GH | AE54: 200 | AF54: 1500 | AG54: 15 | AH54: 2990 | AI54: 7 | AJ54: 7 | AK54: 12 | AL54: 21 | AM54: 30 | AN54: 33 | AO54: 30 | AP54: 20 | AQ54: 12
AA55: GH200x500x2000 | AD55: GH | AE55: 200 | AF55: 2000 | AG55: 24 | AH55: 3790 | AI55: 8 | AJ55: 9 | AK55: 15 | AL55: 28 | AM55: 36 | AN55: 40 | AO55: 37 | AP55: 28 | AQ55: 20
AA56: GH250x500x1000 | AD56: GH | AE56: 250 | AF56: 1000 | AG56: 11 | AH56: 2055 | AI56: 6 | AJ56: 7 | AK56: 11 | AL56: 16 | AM56: 25 | AN56: 27 | AO56: 23 | AP56: 17 | AQ56: 9
AA57: GH250x500x1500 | AD57: GH | AE57: 250 | AF57: 1500 | AG57: 17 | AH57: 3220 | AI57: 8 | AJ57: 8 | AK57: 15 | AL57: 23 | AM57: 30 | AN57: 32 | AO57: 29 | AP57: 21 | AQ57: 11
AA58: GH250x500x2000 | AD58: GH | AE58: 250 | AF58: 2000 | AG58: 26 | AH58: 4035 | AI58: 9 | AJ58: 11 | AK58: 18 | AL58: 28 | AM58: 35 | AN58: 38 | AO58: 34 | AP58: 26 | AQ58: 17
AA59: GH300x500x2000 | AD59: GH | AE59: 300 | AF59: 2000 | AG59: 31 | AH59: 4285 | AI59: 9 | AJ59: 10 | AK59: 18 | AL59: 32 | AM59: 38 | AN59: 39 | AO59: 37 | AP59: 32 | AQ59: 25
AA60: GH400x500x2000 | AD60: GH | AE60: 400 | AF60: 2000 | AG60: 34 | AH60: 5300 | AI60: 8 | AJ60: 9 | AK60: 19 | AL60: 28 | AM60: 36 | AN60: 38 | AO60: 32 | AP60: 25 | AQ60: 17
AA61: GH500x500x2000 | AD61: GH | AE61: 500 | AF61: 2000 | AG61: 36 | AH61: 5940 | AI61: 9 | AJ61: 11 | AK61: 20 | AL61: 30 | AM61: 34 | AN61: 36 | AO61: 30 | AP61: 22 | AQ61: 13
AA63: Aktualizace SW
AA64: 3.0 | AB64: 2023-03-19 | AD64: Oprava útlumu 1 buňky na 50%, roztažení poznámek, změna formátování popisků LWZ-Lin, změna tisku na 1 A4 na ležato, aktualizace cen tlumičů.
